{"text_format":"3","workbook":"xlsx","n_sheets":1,"sheets":["Troškovi pokretanja"],"not_rendered":{"defined_names":1},"read":"whole","date_system":"1900"}

{"sheet":"Troškovi pokretanja","index":0,"n_rows":120,"n_cols":4,"rows_kept":120,"merged":[[1,1,1,3],[10,1,10,3],[17,1,17,3],[25,1,25,3],[34,1,34,3],[42,1,42,3],[50,1,50,3],[55,1,55,3],[57,1,57,3],[59,1,59,3],[60,1,60,3],[69,1,69,3],[76,1,76,3],[81,1,81,3],[82,1,82,3],[90,1,90,3],[102,1,102,3],[110,1,110,3],[115,1,115,3]]}
["TROŠKOVI POKRETANJA",null,null,"NAZIV TVRTKE, D.O.O."]
[null,"NAPOMENA PRIJE KORIŠTENJA OVOG RADNOG LISTA\nGotovo sve osobe koje su pokretale tvrtku podcijenile su troškove, a zatim su se suočile s rizikom poslovanja s neodgovarajućim rezervama kapitala. Da biste izbjegli tu zamku, detaljno istražujte i planirajte. Naš predložak Troškovi pokretanja vodit će vas kroz proces.\n\nZAPOČNITE S PROCJENOM TROŠKOVA\nKoliko će vas koštati pokretanje i održavanje tvrtke? Usmjerenost na detalje ključni je preduvjet postizanja točnosti. Za svaku kategoriju troška, stvorite popis svih artikala koje morate nabaviti. Na taj ćete način obuhvatiti materijalnu imovinu (na primjer, opremu, inventar) i usluge (na primjer, preuređenje, osiguranje). Potom utvrdite gdje možete nabaviti tu robu i usluge. Istražite više dobavljača, na primjer usporedite trgovine. Nemojte gledati samo cijene – važni su i uvjeti plaćanja, pouzdanost i usluga. "]
[]
[null,"TROŠKOVI POKRETANJA"]
[null,"ZGRADA/NEKRETNINE"," ","IZNOS"]
[null,"Kupnja",null,{"v":0,"d":"0.00 kn"}]
[null,"Konstrukcija",null,{"v":0,"d":"0.00 kn"}]
[null,"Preuređenje",null,{"v":0,"d":"0.00 kn"}]
[null,"Ostalo",null,{"v":0,"d":"0.00 kn"}]
[null,"Zbroj",null,{"$f":"SUBTOTAL(109,Nekretnine[IZNOS])","v":{"v":0,"d":"0.00 kn"}}]
[]
[null,"POBOLJŠANJA IMOVINE U NAJMU"," ","IZNOS"]
[null,"Stavka 1",null,{"v":0,"d":"0.00 kn"}]
[null,"Stavka 2",null,{"v":0,"d":"0.00 kn"}]
[null,"Artikl 3",null,{"v":0,"d":"0.00 kn"}]
[null,"Artikl 4",null,{"v":0,"d":"0.00 kn"}]
[null,"Zbroj",null,{"$f":"SUBTOTAL(109,Poboljšanja[IZNOS])","v":{"v":0,"d":"0.00 kn"}}]
[]
[null,"POPIS KAPITALNE OPREME"," ","IZNOS"]
[null,"Namještaj",null,{"v":0,"d":"0.00 kn"}]
[null,"Oprema",null,{"v":0,"d":"0.00 kn"}]
[null,"Instalacije",null,{"v":0,"d":"0.00 kn"}]
[null,"Strojevi",null,{"v":0,"d":"0.00 kn"}]
[null,"Ostalo",null,{"v":0,"d":"0.00 kn"}]
[null,"Zbroj",null,{"$f":"SUBTOTAL(109,Kapital[IZNOS])","v":{"v":0,"d":"0.00 kn"}}]
[]
[null,"LOKACIJA I TROŠKOVI ADMINISTRACIJE"," ","IZNOS"]
[null,"Najam",null,{"v":0,"d":"0.00 kn"}]
[null,"Polog za komunalne usluge",null,{"v":0,"d":"0.00 kn"}]
[null,"Pravni i računovodstveni troškovi",null,{"v":0,"d":"0.00 kn"}]
[null,"Unaprijed plaćeno osiguranje",null,{"v":0,"d":"0.00 kn"}]
[null,"Plaće prije otvaranja ",null,{"v":0,"d":"0.00 kn"}]
[null,"Ostalo",null,{"v":0,"d":"0.00 kn"}]
[null,"Zbroj",null,{"$f":"SUBTOTAL(109,TroškoviAdministracije[IZNOS])","v":{"v":0,"d":"0.00 kn"}}]
[]
[null,"POČETNE ZALIHE"," ","IZNOS"]
[null,"Kategorija 1",null,{"v":0,"d":"0.00 kn"}]
[null,"Kategorija 2",null,{"v":0,"d":"0.00 kn"}]
[null,"Kategorija 3",null,{"v":0,"d":"0.00 kn"}]
[null,"Kategorija 4",null,{"v":0,"d":"0.00 kn"}]
[null,"Kategorija 5",null,{"v":0,"d":"0.00 kn"}]
[null,"Zbroj",null,{"$f":"SUBTOTAL(109,PočetneZalihe[IZNOS])","v":{"v":0,"d":"0.00 kn"}}]
[]
[null,"TROŠKOVI OGLAŠAVANJA I PROMOCIJE"," ","IZNOS"]
[null,"Oglašavanje",null,{"v":0,"d":"0.00 kn"}]
[null,"Oznake",null,{"v":0,"d":"0.00 kn"}]
[null,"Ispis",null,{"v":0,"d":"0.00 kn"}]
[null,"Putovanje/zabava",null,{"v":0,"d":"0.00 kn"}]
[null,"Ostalo/dodatne kategorije",null,{"v":0,"d":"0.00 kn"}]
[null,"Zbroj",null,{"$f":"SUBTOTAL(109,TroškoviPromocije[IZNOS])","v":{"v":0,"d":"0.00 kn"}}]
[]
[null,"OSTALI TROŠKOVI"," ","IZNOS"]
[null,"Ostali troškovi 1",null,{"v":0,"d":"0.00 kn"}]
[null,"Ostali troškovi 2",null,{"v":0,"d":"0.00 kn"}]
[null,"Zbroj",null,{"$f":"SUBTOTAL(109,OstaliTroškovi[IZNOS])","v":{"v":0,"d":"0.00 kn"}}]
[]
[null,"Rezerva za osiguranje",null,{"v":0,"d":"0.00 kn"}]
[]
[null,"Radni kapital ",null,{"v":0,"d":"0.00 kn"}]
[]
[null,"DODAJTE REZERVU ZA OSIGURANJE\nObavezno objasnite kako ste se odlučili za iznos koji stavljate u rezervu \n\nODREDITE PROTOK NOVCA\nPosao ne možete pokrenuti ako vam je bankovni račun prazan. Potrebne su vam zalihe da biste podmirivali troškove dok vam posao ne krene. Trebali biste napraviti projekciju protoka novca za 12 mjeseci i procjenu potreba za radnim kapitalom. Sada ostavite taj redak praznim ili pokušajte procijeniti. Kada završite s unosom protoka novca, vratite se i pažljivo unesite analizirani iznos.\n\nUNESITE IZVORE KAPITALA\nSada kada ste procijenili koliko će kapitala trebati za početak, obratite pažnju na gornji dio radnog lista. Unesite iznose koje ćete sami uložiti, iznose koje će uložiti partneri ili ulagači te koliko ćete posuditi."]
[]
[null,"IZVORI KAPITALA"]
[null,"ULAGANJE VLASNIKA (IME I % VLASNIŠTVA)"," ","IZNOS"]
[null,"Vaše ime i prezime te postotak vlasništva",null,{"v":0,"d":"0.00 kn"}]
[null,"Drugi ulagač",null,{"v":0,"d":"0.00 kn"}]
[null,"Drugi ulagač",null,{"v":0,"d":"0.00 kn"}]
[null,"Drugi ulagač",null,{"v":0,"d":"0.00 kn"}]
[null,"Zbroj",null,{"$f":"SUBTOTAL(109,UlaganjaVlasnika[IZNOS])","v":{"v":0,"d":"0.00 kn"}}]
[]
[null,"BANKOVNI ZAJMOVI"," ","IZNOS"]
[null,"Banka 1",null,{"v":0,"d":"0.00 kn"}]
[null,"Banka 2",null,{"v":0,"d":"0.00 kn"}]
[null,"Banka 3",null,{"v":0,"d":"0.00 kn"}]
[null,"Banka 4",null,{"v":0,"d":"0.00 kn"}]
[null,"Zbroj",null,{"$f":"SUBTOTAL(109,BankovniZajmovi[IZNOS])","v":{"v":0,"d":"0.00 kn"}}]
[]
[null,"OSTALI ZAJMOVI"," ","IZNOS"]
[null,"Izvor 1",null,{"v":0,"d":"0.00 kn"}]
[null,"Izvor 2",null,{"v":0,"d":"0.00 kn"}]
[null,"Zbroj",null,{"$f":"SUBTOTAL(109,OstaliZajmovi[IZNOS])","v":{"v":0,"d":"0.00 kn"}}]
[]
[null,"PRUŽITE DOKAZ O KOLATERALU\nAko ćete ovaj plan koristiti da biste podržali zahtjev za bankovnim zajmom, u odjeljak pri dnu navedite imovinu koju nudite kao kolateral za zajam i procjenu vrijednosti te imovine. Budite spremni i priložiti dokaz o procjeni vrijednosti kolaterala."]
[]
[null,"SAŽETO IZVJEŠĆE"]
[null,"IZVOR KAPITALA"," ","UKUPNI IZNOSI"]
[null,"Vlasnička i druga ulaganja",null,{"$f":"UlaganjaVlasnika[[#Totals],[IZNOS]]","v":{"v":0,"d":"0.00 kn"}}]
[null,"Bankovni zajmovi",null,{"$f":"BankovniZajmovi[[#Totals],[IZNOS]]","v":{"v":0,"d":"0.00 kn"}}]
[null,"Ostali zajmovi",null,{"$f":"OstaliZajmovi[[#Totals],[IZNOS]]","v":{"v":0,"d":"0.00 kn"}}]
[null,"Zbroj",null,{"$f":"SUBTOTAL(109,IzvoriKapitala[UKUPNI IZNOSI])","v":{"v":0,"d":"0.00 kn"}}]
[]
[null,"TROŠKOVI POKRETANJA"," ","UKUPNI IZNOSI"]
[null,"Zgrada/nekretnine",null,{"$f":"Nekretnine[[#Totals],[IZNOS]]","v":{"v":0,"d":"0.00 kn"}}]
[null,"Poboljšanja imovine u najmu",null,{"$f":"Poboljšanja[[#Totals],[IZNOS]]","v":{"v":0,"d":"0.00 kn"}}]
[null,"Kapitalna oprema",null,{"$f":"Kapital[[#Totals],[IZNOS]]","v":{"v":0,"d":"0.00 kn"}}]
[null,"Lokacija/troškovi administracije",null,{"$f":"TroškoviAdministracije[[#Totals],[IZNOS]]","v":{"v":0,"d":"0.00 kn"}}]
[null,"Početne zalihe",null,{"$f":"PočetneZalihe[[#Totals],[IZNOS]]","v":{"v":0,"d":"0.00 kn"}}]
[null,"Troškovi oglašavanja/promocije",null,{"$f":"TroškoviPromocije[[#Totals],[IZNOS]]","v":{"v":0,"d":"0.00 kn"}}]
[null,"Ostali troškovi",null,{"$f":"OstaliTroškovi[[#Totals],[IZNOS]]","v":{"v":0,"d":"0.00 kn"}}]
[null,"Fond za nepredviđene situacije",null,{"$f":"SUM('Troškovi pokretanja'!$C$57)","v":{"v":0,"d":"0.00 kn"}}]
[null,"Radni kapital",null,{"$f":"SUM('Troškovi pokretanja'!$C$59)","v":{"v":0,"d":"0.00 kn"}}]
[null,"Zbroj",null,{"$f":"SUBTOTAL(109,TroškoviPokretanja[UKUPNI IZNOSI])","v":{"v":0,"d":"0.00 kn"}}]
[]
[null,"VRIJEDNOSNI PAPIRI I KOLATERAL ZA PRIJEDLOG ZA ZAJAM"]
[null,"KOLATERAL ZA ZAJMOVE","OPIS","VRIJEDNOST"]
[null,"Nekretnine",null,{"v":0,"d":"0.00 kn"}]
[null,"Drugi kolateral",null,{"v":0,"d":"0.00 kn"}]
[null,"Drugi kolateral",null,{"v":0,"d":"0.00 kn"}]
[null,"Drugi kolateral",null,{"v":0,"d":"0.00 kn"}]
[null,"Zbroj",null,{"$f":"SUBTOTAL(109,Kolateral[VRIJEDNOST])","v":{"v":0,"d":"0.00 kn"}}]
[]
[null,"VLASNICI"," ","  "]
[null,"Ovdje unesite svoje ime"]
[null,"Drugi vlasnik"]
[null,"Drugi vlasnik"]
[]
[null,"JAMCI ZAJMA (KOJI NISU VLASNICI)"," ","  "]
[null,"Jamac zajma 1"]
[null,"Jamac zajma 2"]
[null,"Jamac zajma 3"]